bitfinex/quotes_ETHUSD_20230404
["timestamp","ask_amount","ask_price","bid_price","bid_amount"]
[1680619450659,3.10655259,1869.8,1869.7,0.05]
[1680619451248,3.25629259,1869.8,1869.7,0.05]
[1680619451496,3.78578259,1869.8,1869.7,0.05]
[1680619451701,3.33655259,1869.8,1869.7,0.05]
[1680619452489,3.48629259,1869.8,1869.7,0.05]
[1680619453050,0.003,1869.9,1869.7,0.05]
[1680619453354,0.02191141,1870.1,1869.7,0.05]
[1680619453355,3.209,1869.8,1869.7,0.05]
[1680619454281,3.212,1869.9,1869.7,0.05]
[1680619454592,3.209,1869.9,1869.7,0.24417148]
[1680619454948,3.209,1869.9,1869.7,0.55139811]
[1680619455204,3.209,1869.9,1869.7,1.10692419]
[1680619455352,3.221,1870.1,1869.7,1.10692419]
[1680619455697,3.209,1870.1,1869.7,1.32085419]
[1680619455994,3.209,1870.1,1869.7,1.10692419]
[1680619456525,3.209,1870.1,1869.8,0.11069242]
[1680619457909,3.209,1869.9,1869.7,0.60552608]
[1680619458108,3.209,1869.9,1869.7,0.81945608]
[1680619458263,3.209,1869.9,1869.7,0.60552608]
[1680619458991,3.221,1870.1,1869.7,0.60552608]
[1680619459187,3.209,1870.1,1869.8,0.06055261]
[1680619460478,0.003,1870.2,1869.8,1.19455261]
[1680619460721,3.34459408,1870.3,1869.8,1.75007869]
[1680619460933,6.11061626,1870.3,1869.9,0.11945526]
[1680619461091,6.11361626,1870.3,1869.9,0.33336526]
[1680619461283,6.11361626,1870.3,1869.9,0.11945526]
[1680619461479,6.11361626,1870.3,1869.9,0.33336526]
[1680619461480,3.209,1870.2,1869.9,0.33336526]
[1680619461679,3.209,1870.2,1869.9,0.11945526]
[1680619462085,3.209,1870.2,1869.9,0.33335526]
[1680619462623,3.34459408,1870.3,1869.9,0.33335526]
[1680619462920,3.209,1870.3,1869.9,0.33335526]
[1680619463121,3.209,1870.3,1869.9,0.88888134]
[1680619463293,3.209,1870.3,1870.0,0.08888813]
[1680619463477,3.209,1870.3,1869.9,0.88888134]
[1680619463723,0.1587,1870.4,1869.9,0.88888134]
[1680619463925,3.439,1870.3,1869.9,0.67498134]
[1680619464099,3.439,1870.3,1869.9,0.11945526]
[1680619464298,3.5887,1870.3,1869.9,0.11945526]
[1680619465375,3.439,1870.3,1869.9,0.11945526]
[1680619465617,3.5887,1870.3,1869.9,0.11945526]
[1680619465924,6.35156539,1870.3,1869.9,0.12545526]
[1680619466152,6.35456539,1870.3,1869.9,0.12545526]
[1680619467056,6.35456539,1870.3,1869.9,0.006]
[1680619467219,6.65397539,1870.3,1869.9,0.006]
[1680619468111,6.35456539,1870.3,1869.9,0.006]
[1680619469648,6.21386539,1870.3,1869.8,10.87588188]
[1680619469896,6.21386539,1870.3,1869.8,12.15113294]
[1680619470604,6.21386539,1870.3,1869.8,12.39282097]
[1680619470950,6.21386539,1870.3,1869.8,13.6452997]
[1680619471116,3.44784321,1870.3,1869.8,13.6452997]
[1680619471320,3.44484321,1870.3,1869.9,0.76942608]
[1680619471547,3.44484321,1870.3,1870.0,0.07694261]
[1680619479482,3.44484321,1870.3,1869.9,0.76943608]
[1680619480130,3.44484321,1870.3,1869.9,0.55552608]
[1680619480331,3.59454321,1870.3,1869.9,0.55552608]
[1680619482135,3.44484321,1870.3,1869.9,0.55552608]
[1680619482479,3.44484321,1870.3,1869.9,1.59406481]
[1680619483078,3.44484321,1870.3,1870.0,0.55552608]
[1680619483232,3.44484321,1870.3,1870.0,0.58852608]
[1680619483432,3.44484321,1870.3,1870.0,0.55552608]
[1680619484653,3.44484321,1870.3,1870.1,0.21262438]
[1680619485690,3.59454321,1870.3,1870.1,0.21262438]
[1680619485853,3.59454321,1870.3,1870.1,0.20993764]
[1680619486193,3.58554321,1870.3,1870.1,0.20993764]
[1680619489691,6.35156539,1870.3,1870.1,0.20993764]
[1680619490000,7.63977929,1870.3,1870.1,0.20993764]
[1680619490403,6.20486539,1870.3,1870.1,0.20993764]
[1680619490604,3.43884321,1870.3,1870.1,0.20993764]
[1680619490908,3.43584321,1870.3,1870.1,0.20993764]
[1680619491610,3.58554321,1870.3,1870.1,0.20993764]
[1680619492408,3.43584321,1870.3,1870.1,0.20993764]
[1680619493290,3.39261141,1870.4,1870.1,0.20993764]
[1680619493488,3.209,1870.4,1870.1,0.76546372]
[1680619493948,0.009,1870.5,1870.1,0.97935372]
[1680619494093,0.003,1870.6,1870.2,1.38015481]
[1680619494094,3.209,1870.6,1870.2,1.38015481]
[1680619494427,0.009,1870.7,1870.3,0.55552608]
[1680619494629,3.5025122,1870.8,1870.3,0.55552608]
[1680619494831,0.14969,1870.5,1870.2,0.55552608]
[1680619495001,0.14969,1870.5,1870.1,1.38015481]
[1680619495206,3.209,1870.4,1870.2,0.55552608]
[1680619495410,3.3587,1870.4,1870.1,1.38015481]
[1680619495609,3.209,1870.4,1870.1,0.55552608]
[1680619495835,3.209,1870.4,1870.1,1.38015481]
[1680619495836,0.23,1870.3,1870.1,1.38015481]
[1680619496044,0.23,1870.3,1870.1,0.55552608]
[1680619496538,3.209,1870.4,1870.1,1.62812079]
[1680619496695,3.209,1870.4,1870.1,1.84200079]
[1680619496895,3.209,1870.4,1870.2,0.55552608]
[1680619498000,3.209,1870.6,1870.3,0.55552608]
[1680619498595,3.209,1870.5,1870.3,0.55552608]
[1680619498795,3.209,1870.5,1870.2,1.03850873]
[1680619498796,3.209,1870.5,1870.2,11.26815481]
[1680619499023,3.209,1870.5,1870.2,13.10731739]
[1680619499233,3.209,1870.5,1870.2,3.21931739]
[1680619499438,3.209,1870.5,1870.2,1.38015481]
[1680619499633,0.009,1870.6,1870.3,0.21151526]
[1680619499833,3.218,1870.7,1870.3,0.21151526]
[1680619500075,0.14968,1870.6,1870.3,0.21151526]
[1680619501984,0.1497,1870.4,1870.3,0.21151526]
[1680619502153,3.209,1870.5,1870.3,0.21151526]
[1680619502490,3.65807,1870.5,1870.3,0.21151526]
[1680619503070,0.14969,1870.5,1870.3,0.21151526]
[1680619503296,0.14969,1870.5,1870.3,0.28821939]
[1680619504147,3.65807,1870.5,1870.3,0.21151526]
[1680619505657,3.66707,1870.5,1870.3,0.21151526]
[1680619506599,3.65517791,1870.5,1870.3,0.21151526]
[1680619508192,6.42120009,1870.5,1870.3,0.21151526]
[1680619508397,4.08112001,1870.4,1870.3,0.21151526]
[1680619508563,5.12902001,1870.4,1870.3,0.21151526]
[1680619508891,7.89804219,1870.4,1870.0,0.56152608]
[1680619509078,3.35871,1870.2,1870.0,0.55752608]
[1680619509279,3.65814,1870.2,1870.0,0.55752608]
[1680619509798,3.65814,1870.2,1870.1,0.21243247]
[1680619510112,3.88814,1870.2,1870.1,0.21243247]
[1680619511577,3.88814,1870.2,1869.9,1.38615481]
[1680619511893,3.88814,1870.2,1869.9,0.56152608]
[1680619512889,4.61593336,1870.2,1869.9,0.56152608]
[1680619513201,5.13859913,1870.2,1869.9,0.55552608]
[1680619513406,5.14159913,1870.2,1869.9,0.55552608]
[1680619513760,3.209,1870.0,1869.8,1.38615481]
[1680619513977,4.48718,1869.9,1869.7,0.056]
[1680619514274,5.21250022,1869.9,1869.7,0.05]
[1680619514605,5.21550022,1869.9,1869.7,0.05]
[1680619515346,4.26018,1869.9,1869.7,0.05]
[1680619515641,0.44922,1869.9,1869.7,0.05]
[1680619515850,0.14973,1870.0,1869.7,0.05]
[1680619516145,0.14974,1869.9,1869.7,0.05]
[1680619516300,0.14974,1869.9,1869.7,0.12055261]
[1680619516710,0.14974,1869.9,1869.7,0.12255261]
[1680619517041,3.65819,1870.0,1869.7,0.12255261]
[1680619517241,3.65819,1870.0,1869.7,0.12455261]
[1680619517423,3.65819,1870.0,1869.7,0.12655261]
[1680619518640,3.65819,1870.0,1869.7,0.052]
[1680619520065,6.42421218,1870.0,1869.7,0.052]
[1680619520371,0.14974,1869.8,1869.7,0.05]
[1680619520572,3.65823,1869.8,1869.7,0.05]
[1680619520726,0.003,1869.9,1869.7,0.05]
[1680619520930,3.209,1870.0,1869.7,0.05]
[1680619521247,3.65819,1870.0,1869.7,0.05]
[1680619522884,3.35873,1870.0,1869.7,0.05]
[1680619524324,0.30245,1870.1,1869.7,0.05]
[1680619524325,0.003,1870.1,1869.7,0.05]
[1680619524525,0.14971,1870.2,1869.7,0.05]
[1680619524772,0.14971,1870.3,1869.7,1.00370869]
[1680619525071,0.14969,1870.5,1869.7,9.73730087]
[1680619525240,0.14969,1870.5,1869.8,11.08427835]
[1680619525576,0.44907,1870.5,1869.8,11.30419835]
[1680619525924,0.44907,1870.5,1869.8,12.12882708]
[1680619526130,0.14969,1870.5,1869.9,1.21288271]
[1680619526381,0.14969,1870.5,1869.9,3.98490489]
[1680619526881,0.14969,1870.5,1869.9,4.54043097]
[1680619527664,0.14969,1870.5,1869.9,4.75434097]
[1680619527875,0.1378422,1870.8,1870.5,0.00356571]
[1680619528037,0.012,1871.2,1870.5,4.12741789]
[1680619528236,0.28593304,1871.2,1870.6,0.41274179]
[1680619528789,3.34529304,1871.2,1870.6,1.76357179]
[1680619528935,3.34529304,1871.2,1870.7,0.17635718]
[1680619529136,3.49492304,1871.2,1870.7,0.17635718]
[1680619529767,3.34529304,1871.2,1870.7,0.39017718]
[1680619530281,3.49492304,1871.2,1870.7,0.17635718]
[1680619530950,3.49492304,1871.2,1870.7,0.39017718]
[1680619531178,3.34529304,1871.2,1870.7,0.39017718]
[1680619531482,3.49492304,1871.2,1870.7,0.17635718]
[1680619531785,0.13629304,1871.2,1870.7,0.39017718]
[1680619532154,3.49492304,1871.2,1870.7,0.17635718]
[1680619532349,3.49492304,1871.2,1870.7,0.39017718]
[1680619532569,3.34529304,1871.2,1870.8,0.3005675]
[1680619532769,3.34529304,1871.2,1870.8,0.36964197]
[1680619532975,3.34213268,1871.2,1870.8,0.37364197]
[1680619533175,3.34213268,1871.2,1870.8,0.36964197]
[1680619533362,3.49176268,1871.2,1870.8,0.36964197]
[1680619534990,4.93503268,1871.2,1870.8,0.3005675]
[1680619536061,4.63576268,1871.2,1870.8,0.3005675]
[1680619536273,4.93503268,1871.2,1870.8,0.3005675]
[1680619538545,4.93503268,1871.2,1870.8,3.06658968]
[1680619538546,0.13313268,1871.2,1870.8,3.06658968]
[1680619538746,0.28276268,1871.2,1870.9,0.30665897]
[1680619539447,0.58203268,1871.2,1870.8,0.3005675]
[1680619539667,0.13313268,1871.2,1870.7,5.916]
[1680619539872,0.13313268,1871.2,1870.7,8.68202218]
[1680619540064,0.28276268,1871.2,1870.8,0.86820222]
[1680619540563,0.13313268,1871.2,1870.8,0.86820222]
[1680619541087,0.13313268,1871.2,1870.8,1.08201222]
[1680619541444,0.13313268,1871.2,1870.8,4.2756544]
[1680619541649,0.13313268,1871.2,1870.8,4.2816544]
[1680619541851,0.13313268,1871.2,1871.0,0.21378]
[1680619542292,0.12200001,1871.5,1871.0,0.21378]
[1680619542293,0.12200001,1871.5,1871.1,2.76602218]
[1680619542494,0.12200001,1871.5,1871.1,2.97978218]
[1680619542495,0.11000001,1871.5,1871.1,2.97978218]
[1680619542988,0.11000001,1871.5,1871.1,2.97979218]
[1680619543194,0.11000001,1871.5,1871.2,0.29797922]
[1680619543404,0.11000001,1871.5,1871.2,0.51173922]
[1680619543567,0.11000001,1871.5,1871.2,4.8422914]
[1680619543770,0.11000001,1871.5,1871.3,2.97976218]
[1680619544206,0.11000001,1871.5,1871.3,2.76602218]
[1680619544353,0.11000001,1871.5,1871.4,0.27660222]
[1680619544550,0.08476575,1871.5,1871.4,0.52894482]
[1680619544751,0.08476575,1871.5,1871.4,0.2523426]
[1680619546075,0.08476575,1871.5,1871.4,0.4660826]
[1680619546268,0.08476575,1871.5,1871.4,0.8935626]
[1680619546454,0.08476575,1871.5,1871.4,0.4660826]
[1680619546966,0.08476575,1871.5,1871.4,0.55544086]
[1680619547596,0.06020876,1871.5,1871.4,0.55544086]
[1680619548300,0.06020876,1871.5,1871.4,0.34170086]
[1680619548806,0.03287684,1871.5,1871.4,0.34170086]
[1680619549006,0.03287684,1871.5,1871.4,0.2523426]
[1680619550103,3.71261825,1871.5,1871.4,0.2523426]
[1680619550466,3.94261825,1871.5,1871.4,0.2523426]
[1680619550768,3.94261825,1871.5,1870.9,0.006]
[1680619550967,3.94261825,1871.5,1870.8,10.7572]
[1680619551166,3.94261825,1871.5,1870.9,1.07572]
[1680619551605,3.94261825,1871.5,1870.9,1.29292689]
[1680619551984,3.94261825,1871.5,1870.9,1.50671689]
[1680619552518,3.64339825,1871.5,1870.9,1.50671689]
[1680619552679,0.05478825,1871.5,1870.9,1.50671689]
[1680619552879,0.05478825,1871.5,1871.0,0.36445169]
[1680619553109,0.20439825,1871.5,1871.0,0.15067169]
[1680619553312,0.05478825,1871.5,1871.0,3.13047387]
[1680619553474,0.20439825,1871.5,1871.0,2.91669387]
[1680619553809,0.20439825,1871.5,1871.1,0.29166939]
[1680619555518,0.50361825,1871.5,1871.1,0.29166939]
[1680619556893,0.50361825,1871.5,1871.1,0.28900388]
[1680619557305,4.31106825,1871.5,1870.9,7.17222]
[1680619557613,4.32006825,1871.5,1870.9,7.17022]
[1680619557987,4.353,1871.4,1870.9,1.07572]
[1680619558314,0.44889,1871.3,1870.8,10.7572]
[1680619558514,0.44889,1871.3,1870.8,10.7512]
[1680619559415,0.14963,1871.3,1870.8,10.7512]
[1680619559579,0.14963,1871.3,1870.9,0.2327015]
[1680619560614,4.66124,1871.4,1870.9,0.2327015]
[1680619560816,4.81086,1871.4,1870.9,1.33109165]
[1680619561213,4.80186,1871.4,1870.9,0.2327015]
[1680619561728,4.51162,1871.4,1870.8,11.04191]
[1680619562127,0.009,1871.4,1870.8,11.04191]
[1680619562332,1.34839825,1871.5,1870.8,14.23555218]
[1680619562653,0.06378825,1871.5,1870.9,4.4033674]
[1680619562807,0.05478825,1871.5,1870.9,4.8309674]
[1680619563012,0.03287684,1871.5,1870.9,12.8232674]
[1680619563270,0.03287684,1871.5,1871.1,0.21377]
[1680619565026,0.03287684,1871.5,1871.1,2.97979218]
[1680619565243,0.03287684,1871.5,1871.1,2.76602218]
[1680619566113,0.18248684,1871.5,1871.1,2.76602218]
[1680619566311,0.18248684,1871.5,1871.2,0.27660222]
[1680619566561,0.03287684,1871.5,1871.2,0.27660222]
[1680619566866,0.18248684,1871.5,1871.2,0.27660222]
[1680619567215,0.48170684,1871.5,1871.2,0.27660222]
[1680619567412,0.48170684,1871.5,1871.0,1.28432674]
[1680619567413,0.18248684,1871.5,1871.0,1.28232674]
[1680619567728,0.03287684,1871.5,1871.0,4.26212892]
[1680619567910,0.03287684,1871.5,1871.1,0.42621289]
[1680619569118,0.18248684,1871.5,1871.1,0.42621289]
[1680619569345,0.03287684,1871.5,1871.1,3.19223507]
[1680619569553,0.03287684,1871.5,1871.2,0.31922351]
[1680619570154,0.03287684,1871.5,1871.2,3.29900569]
[1680619570521,0.03287684,1871.5,1871.3,2.76602218]
[1680619572635,0.18248684,1871.5,1871.2,16.10692351]
[1680619572838,0.18248684,1871.5,1871.2,16.10492351]
[1680619573324,0.18248684,1871.5,1871.2,15.7857]
[1680619574623,0.18248684,1871.5,1871.3,0.20776721]
[1680619575044,0.03287684,1871.5,1871.3,0.20776721]
[1680619577481,0.03084251,1871.5,1871.3,0.20776721]
[1680619583389,0.18045251,1871.5,1871.3,0.20776721]
[1680619583726,0.61211776,1871.5,1871.3,0.20776721]
[1680619583877,4.353,1871.4,1871.3,0.20776721]
[1680619584076,5.40034,1871.4,1871.3,0.20776721]
[1680619584417,5.40334,1871.4,1871.3,0.20776721]
[1680619584626,5.40334,1871.4,1870.9,0.006]
[1680619584778,3.209,1871.2,1870.8,0.006]
[1680619585120,3.209,1871.2,1870.7,0.55752608]
[1680619585121,0.14964,1871.1,1870.7,0.55752608]
[1680619585416,0.14964,1871.1,1870.7,2.37338156]
[1680619585980,0.14964,1871.1,1870.7,5.37338156]
[1680619586189,0.14964,1871.2,1870.7,6.19801029]
[1680619586518,0.14963,1871.3,1870.8,1.17532711]
[1680619586673,3.35863,1871.3,1870.8,1.17532711]
[1680619586874,3.35863,1871.3,1870.8,1.18132711]
[1680619586875,0.14963,1871.3,1870.8,1.18132711]
[1680619587074,0.14963,1871.3,1870.8,1.17532711]
[1680619587473,3.35863,1871.3,1870.8,1.17532711]
[1680619587670,3.35863,1871.3,1870.8,1.18132711]
[1680619587873,3.544863,1871.2,1870.8,0.006]
[1680619588189,4.79492,1871.1,1870.8,0.002]
[1680619588520,4.79492,1871.1,1870.6,0.56152608]
[1680619588689,8.15578889,1871.1,1870.6,0.56152608]
[1680619588891,0.14966,1870.9,1870.6,0.56152608]
[1680619589126,3.35866,1870.9,1870.6,0.56152608]
[1680619589717,3.35866,1870.9,1870.7,0.19918164]
[1680619589718,4.80198,1870.9,1870.7,0.19918164]
[1680619590015,5.191076,1870.9,1870.7,0.19918164]
[1680619590216,5.194076,1870.9,1870.7,0.19918164]
[1680619590634,5.194076,1870.9,1870.5,0.56309179]
[1680619590833,4.80498,1870.9,1870.5,0.55909179]
[1680619591134,4.80498,1870.9,1870.5,0.00356571]
[1680619591135,4.80198,1870.9,1870.5,0.00356571]
[1680619592186,1.144,1870.6,1870.5,0.00356571]
[1680619592416,1.59304,1870.6,1870.5,0.00356571]
[1680619592801,4.80204,1870.6,1870.5,0.00356571]
[1680619595236,5.03204,1870.6,1870.5,0.00356571]
[1680619595424,5.03504,1870.6,1870.5,0.00356571]
[1680619595624,5.60060614,1870.6,1870.5,0.00356571]
[1680619597726,5.60060614,1870.6,1870.5,0.1887624]
[1680619599533,5.59671681,1870.6,1870.5,0.00356571]
[1680619600622,5.59671681,1870.6,1870.5,0.18628181]
[1680619605455,8.36273899,1870.6,1870.5,0.18628181]
[1680619607655,8.36273899,1870.6,1870.5,0.00356571]
[1680619607953,8.36273899,1870.6,1870.5,0.16356571]
[1680619608378,8.06337899,1870.6,1870.5,0.16356571]
[1680619608592,8.06337899,1870.6,1870.5,0.16]
[1680619608951,5.14767681,1870.6,1870.5,0.16]
[1680619609150,4.58211067,1870.6,1870.5,0.16]
[1680619609381,4.34911067,1870.6,1870.5,0.16]
[1680619609780,3.212,1870.7,1870.5,0.16]
[1680619610116,3.209,1870.7,1870.5,0.16]
[1680619610617,3.35867,1870.7,1870.6,0.17601083]
[1680619612099,6.90434218,1870.7,1870.6,0.17601083]
[1680619612302,8.28134218,1870.7,1870.6,0.17601083]
[1680619612798,8.28134218,1870.7,1870.5,0.16]
[1680619613001,7.49870218,1870.6,1870.5,0.16]
[1680619613225,7.50170218,1870.6,1870.5,0.16]
[1680619613592,8.3298374,1870.6,1870.5,0.16]
[1680619619799,4.73568,1870.6,1870.5,0.16]
[1680619620017,4.73268,1870.6,1870.5,0.16]
[1680619620543,4.73268,1870.6,1870.5,0.15786569]
[1680619622103,3.212,1870.7,1870.5,0.15786569]
[1680619622300,4.80204,1870.6,1870.5,0.15786569]
[1680619622843,4.80204,1870.6,1870.5,0.32501271]
[1680619623145,3.209,1870.6,1870.5,0.32501271]
[1680619623344,0.012,1870.8,1870.5,0.32501271]
[1680619623643,0.14968,1870.7,1870.5,0.32501271]
[1680619624157,0.009,1870.9,1870.5,0.53885271]
[1680619624360,0.14965,1871.0,1870.5,3.18769016]
[1680619625042,0.14965,1871.0,1870.5,9.11729016]
[1680619625857,0.14965,1871.0,1870.5,9.18146193]
[1680619626013,0.14965,1871.0,1870.6,0.91814619]
[1680619626523,0.14965,1871.0,1870.7,0.26933631]
[1680619626858,0.14965,1871.0,1870.6,0.91814619]
[1680619629403,0.43187491,1871.1,1870.6,7.32565837]
[1680619629404,0.13257491,1871.1,1870.6,7.32565837]
[1680619629609,0.13257491,1871.1,1870.7,0.73256584]
[1680619630313,0.13257491,1871.1,1870.7,0.94638584]
[1680619632258,3.35863,1871.3,1870.7,0.94638584]
[1680619632958,3.49268217,1871.3,1870.7,0.94638584]
[1680619633511,0.28368217,1871.3,1870.8,2.76602218]
[1680619633717,0.28368217,1871.3,1870.9,0.27660222]
[1680619633914,0.13405217,1871.3,1870.9,0.49039222]
[1680619634119,0.13405217,1871.3,1870.9,0.27660222]
[1680619634632,0.13405217,1871.3,1871.0,0.19814962]
[1680619637266,0.28368217,1871.3,1871.0,0.19814962]
[1680619637470,0.93220039,1871.3,1871.0,0.19814962]
[1680619638683,0.93220039,1871.3,1870.8,5.8675]
[1680619638684,4.14120039,1871.3,1870.8,5.8675]
[1680619638849,4.15020039,1871.3,1870.8,5.8675]
[1680619640661,4.13820656,1871.3,1870.8,5.8735]
[1680619641845,4.13820656,1871.3,1870.8,6.46105]
[1680619642046,3.78893834,1871.3,1870.8,6.46105]
[1680619642395,3.48968834,1871.3,1870.8,6.67486]
[1680619642688,0.003,1871.4,1871.2,1.144]
[1680619642900,0.03084251,1871.5,1871.3,10.31168218]
[1680619643043,0.03084251,1871.5,1871.4,6.789]
[1680619643242,0.03084251,1871.5,1871.4,13.19624218]
[1680619643873,0.03084251,1871.5,1871.4,13.20224218]
[1680619644048,0.03084251,1871.5,1871.4,14.6202084]
[1680619645679,0.03084251,1871.5,1871.4,8.9742084]
[1680619645881,0.03084251,1871.5,1871.4,8.5467284]
[1680619646098,0.03084251,1871.5,1871.4,5.78070622]
[1680619646396,0.03084251,1871.5,1871.4,3.21974]
[1680619646559,0.03084251,1871.5,1871.4,0.21974]
[1680619646758,0.03084251,1871.5,1871.4,3.64122]
[1680619647063,0.03084251,1871.5,1871.4,0.64722]
[1680619647265,0.03084251,1871.5,1871.4,3.21374]
[1680619647456,0.03084251,1871.5,1871.4,3.895904]
[1680619647851,0.03084251,1871.5,1871.4,4.323384]
[1680619648087,0.03084251,1871.5,1871.4,1.323384]
[1680619648292,0.03084251,1871.5,1871.4,4.323384]
[1680619648709,0.03084251,1871.5,1871.4,3.895904]
[1680619649003,0.03084251,1871.5,1871.4,3.682164]
[1680619649152,0.03084251,1871.5,1871.4,3.006]
[1680619649354,0.03084251,1871.5,1871.4,0.006]
[1680619649549,0.03084251,1871.5,1871.4,0.25198374]
[1680619649907,0.02815555,1871.5,1871.4,0.24598374]
[1680619650253,0.36683211,1871.5,1871.4,0.24598374]
[1680619650455,3.72544211,1871.5,1871.4,0.24598374]
[1680619650661,3.72544211,1871.5,1871.0,9.8427]
[1680619650880,3.72544211,1871.5,1871.0,9.8407]
[1680619651202,4.03366211,1871.5,1870.9,0.008]
[1680619651411,3.72544211,1871.5,1870.9,1.47599459]
[1680619651582,4.02466211,1871.5,1871.1,0.24553967]
[1680619651780,3.73444211,1871.5,1871.1,0.24553967]
[1680619652106,0.01524414,1871.5,1871.1,0.24553967]
[1680619652290,0.00624414,1871.5,1871.1,0.45930967]
[1680619652891,0.00624414,1871.5,1871.1,6.00180967]
[1680619653600,0.00624414,1871.5,1871.1,7.56635967]
[1680619653800,0.00624414,1871.5,1871.2,9.16865815]
[1680619653988,0.00624414,1871.5,1871.2,9.38241815]
[1680619654812,0.00624414,1871.5,1871.4,1.137]
[1680619655023,0.00624414,1871.5,1871.4,5.04424218]
[1680619655204,0.00624414,1871.5,1871.4,13.68994218]
[1680619655510,0.00624414,1871.5,1871.4,15.2092384]
[1680619657572,0.11000001,1871.7,1871.4,15.45317228]
[1680619657800,0.11000001,1871.7,1871.5,3.90302218]
[1680619658020,0.11000001,1871.7,1871.5,4.11674218]
[1680619658340,0.11000001,1871.7,1871.6,0.41167422]
[1680619660610,0.11000001,1871.7,1871.4,10.88073622]
[1680619660829,0.11000001,1871.7,1871.4,8.6457]
[1680619663133,0.11000001,1871.7,1871.4,8.85944]
[1680619665000,0.11000001,1871.7,1871.4,8.6457]
[1680619665300,0.11000001,1871.7,1871.4,8.85944]
[1680619665632,0.11000001,1871.7,1871.5,0.24268421]
[1680619668022,0.11000001,1871.7,1871.5,0.45641421]
[1680619668237,0.11000001,1871.7,1871.5,1.15289563]
[1680619668810,4.61259001,1871.7,1871.5,0.24268421]
[1680619669012,4.91178001,1871.7,1871.5,0.24268421]
[1680619669921,4.92078001,1871.7,1871.5,0.24268421]
[1680619671935,7.34902218,1871.6,1871.5,0.24268421]
[1680619672144,9.1909124,1871.6,1871.5,0.24268421]
[1680619672341,9.22182381,1871.6,1871.5,0.24268421]
[1680619672541,9.22182381,1871.6,1870.8,16.1579]
[1680619672725,3.209,1871.4,1870.8,16.1539]
[1680619672960,0.14963,1871.3,1870.8,16.1539]
[1680619673267,0.14963,1871.3,1870.9,1.61539]
[1680619673429,1.29363,1871.3,1870.9,1.61539]
[1680619673629,1.144,1871.3,1870.9,1.86102432]
[1680619674030,1.144,1871.3,1870.9,4.86102432]
[1680619674936,1.29362,1871.3,1870.9,4.86102432]
[1680619675380,1.144,1871.3,1870.9,4.86102432]
[1680619675726,1.29362,1871.3,1870.9,4.86102432]
[1680619677133,1.144,1871.3,1870.9,4.86102432]
[1680619677847,3.66986,1871.4,1871.0,0.69988243]
[1680619677848,0.012,1871.4,1871.0,0.69988243]
[1680619678205,3.36761,1871.5,1871.0,0.48610243]
[1680619678499,3.218,1871.5,1871.0,0.69988243]
[1680619678881,3.218,1871.5,1871.0,0.23828998]
[1680619679199,4.042191,1871.5,1871.0,0.45206998]
[1680619679534,4.042191,1871.5,1871.1,0.2445635]
[1680619680083,4.191801,1871.5,1871.1,0.2445635]
[1680619680381,3.218,1871.5,1871.1,0.4583335]
[1680619680683,3.218,1871.5,1871.1,0.21377]
[1680619680924,0.009,1871.5,1871.2,2.76602218]
[1680619681041,0.11900001,1871.7,1871.3,0.21375]
[1680619681239,0.11900001,1871.7,1871.3,3.3205024]
[1680619681463,0.11900001,1871.7,1871.3,3.7480124]
[1680619681651,0.11300001,1871.7,1871.4,2.76602218]
[1680619681862,0.11000001,1871.7,1871.5,0.91779222]
[1680619682782,0.11000001,1871.7,1871.5,0.49033222]
[1680619682997,0.11000001,1871.7,1871.5,0.27660222]
[1680619684389,0.11000001,1871.7,1871.5,0.49032222]
[1680619685601,0.11000001,1871.7,1871.6,2.76602218]
[1680619685920,0.11000001,1871.7,1871.6,3.09165662]
[1680619686792,0.11000001,1871.7,1871.6,0.32563444]
[1680619686975,0.11000001,1871.7,1871.5,0.27660222]
[1680619687180,0.11000001,1871.7,1871.5,3.0426244]
[1680619687717,0.07808366,1871.8,1871.5,3.0426244]
[1680619689535,0.07808366,1871.8,1871.5,3.2563544]
[1680619689787,0.07808366,1871.8,1871.6,0.32563544]
[1680619689982,0.07808366,1871.8,1871.7,2.76602218]
[1680619690234,0.07808366,1871.8,1871.7,3.40713218]
[1680619690433,0.07808366,1871.8,1871.7,3.25713218]
[1680619690613,0.07808366,1871.8,1871.7,11.90313218]
[1680619690813,0.07808366,1871.8,1871.7,14.58318955]
[1680619691039,0.07808366,1871.8,1871.7,14.15577955]
[1680619691936,0.07808366,1871.8,1871.7,13.94207955]
[1680619692107,0.07808366,1871.8,1871.7,14.15577955]
[1680619692316,0.07808366,1871.8,1871.7,13.94207955]
[1680619692523,0.07808366,1871.8,1871.7,14.15577955]
[1680619692854,0.07808366,1871.8,1871.7,13.94207955]
[1680619695431,0.07808366,1871.8,1871.7,8.29607955]
[1680619695631,0.07808366,1871.8,1871.7,15.28977955]
[1680619695831,0.07808366,1871.8,1871.7,15.71718955]
[1680619696735,0.07808366,1871.8,1871.7,22.33091955]
[1680619701820,0.07808366,1871.8,1871.7,22.08091955]
[1680619708258,0.07808366,1871.8,1871.7,20.94691955]
[1680619712082,0.07808366,1871.8,1871.7,22.08991955]
[1680619712594,0.07808366,1871.8,1871.7,24.22700955]
[1680619712807,0.11000001,1871.9,1871.8,0.07791634]
[1680619713099,0.11000001,1871.9,1871.8,16.67630698]
[1680619713309,0.11000001,1871.9,1871.8,16.12327383]
[1680619713904,0.11000001,1871.9,1871.8,16.67630698]
[1680619714662,1e-08,1871.9,1871.8,16.67630698]
[1680619715192,1e-08,1871.9,1871.8,16.12327383]
[1680619715401,1e-08,1871.9,1871.8,16.04535749]
[1680619716665,1e-08,1872.0,1871.9,0.5]
[1680619716864,1e-08,1872.0,1871.9,18.31012716]
[1680619717064,1e-08,1872.0,1871.9,21.31012716]
[1680619718592,1e-08,1872.0,1871.9,20.81012716]
[1680619719001,1e-08,1872.0,1871.9,20.58012716]
[1680619719178,1e-08,1872.0,1871.9,19.44612716]
[1680619719524,1e-08,1872.0,1871.9,18.16401716]
[1680619721112,1e-08,1872.0,1871.9,18.59138716]
[1680619725120,1e-08,1872.0,1871.9,20.51742031]
[1680619726514,1e-08,1872.0,1871.9,19.37442031]
[1680619726708,1e-08,1872.0,1871.9,19.97085637]
[1680619726902,1e-08,1872.0,1871.9,19.14622764]
[1680619730347,1e-08,1872.0,1871.9,13.50022764]
[1680619730932,0.02191141,1872.5,1871.9,12.95138716]
[1680619731137,1.144,1872.3,1871.9,5.77202218]
[1680619731453,1.29354,1872.3,1871.9,16.09882218]
[1680619732170,1.144,1872.2,1871.9,3.006]